[Event "HUN-ch Rapid 2018"]
[Site "Ajka"]
[Date "2018.07.20"]
[Round "4"]
[White "Kovacs, Elod"]
[Black "Groszpeter, Attila"]
[Result "0-1"]
[ECO "D45"]
[WhiteElo "2126"]
[BlackElo "2438"]
[Annotator "NA"]
[PlyCount "108"]
[EventDate "2018.07.20"]
[EventType "swiss"]
[EventCountry "HUN"]
[SourceTitle "playchess.com"]
[Source "ChessBase"]
[SourceQuality "1"]
[TimeControl "1200+5"]

1. d4 {[%emt 0:00:05]} d5 {[%emt 0:00:02]} 2. c4 {[%emt 0:00:02]} e6 {[%emt 0:00:02]} 3. Nc3 {[%emt 0:00:03]} c6 {[%emt 0:00:02]} 4. e3 {[%emt 0:00:12]} Nf6 {[%emt 0:00:03]} 5. Nf3 {[%emt 0:00:05]} Nbd7 {[%emt 0:00:02]} 6. b3 {[%emt 0:00:53]} Bb4 {[%emt 0:01:57]} 7. Bd2 {[%emt 0:00:02]} O-O {[%emt 0:00:50]} 8. Be2 {[%emt 0:01:13]} Bd6 {[%emt 0:01:16]} 9. O-O {[%emt 0:00:42]} Ne4 {[%emt 0:00:33]} 10. Nxe4 {[%emt 0:01:11]} dxe4 {[%emt 0:00:02]} 11. Ne1 {[%emt 0:00:01]} f5 {[%emt 0:00:14]} 12. f4 {[%emt 0:03:14]} exf3 {[%emt 0:00:14]} 13. Nxf3 {[%emt 0:00:05]} e5 {[%emt 0:00:04]} 14. dxe5 {[%emt 0:00:54]} Nxe5 {[%emt 0:00:06]} 15. Bc3 {[%emt 0:00:11]} Qe7 {[%emt 0:01:24]} 16. Nxe5 {[%emt 0:01:07]} Bxe5 {[%emt 0:00:06]} 17. Bxe5 {[%emt 0:00:04]} Qxe5 {[%emt 0:00:01]} 18. Qd4 {[%emt 0:00:01]} Re8 {[%emt 0:00:28]} 19. Qxe5 {[%emt 0:01:21]} Rxe5 {[%emt 0:00:02]} 20. Bd3 {[%emt 0:00:02]} Be6 {[%emt 0:04:43]} 21. Kf2 {[%emt 0:00:19]} a5 {[%emt 0:00:44]} 22. a4 {[%emt 0:01:18]} Kf7 {[%emt 0:00:52]} 23. Rad1 {[%emt 0:01:33]} Ke7 {[%emt 0:00:36]} 24. Be2 {[%emt 0:00:24]} Rd8 {[%emt 0:00:54]} 25. h4 {[%emt 0:00:08]} g6 {[%emt 0:00:22]} 26. Rd4 {[%emt 0:00:25]} Rxd4 {[%emt 0:00:41]} 27. exd4 {[%emt 0:00:02]} Re4 {[%emt 0:00:01]} 28. Rd1 {[%emt 0:00:18]} Rxh4 {[%emt 0:00:06]} 29. Bf3 {[%emt 0:00:43]} Bd7 {[%emt 0:01:10]} 30. g3 {[%emt 0:00:16]} Rh2+ {[%emt 0:00:28]} 31. Bg2 {[%emt 0:00:02]} g5 {[%emt 0:00:13]} 32. Re1+ {[%emt 0:00:24]} Kd8 {[%emt 0:00:21]} 33. Re5 {[%emt 0:01:53]} b6 {[%emt 0:00:30]} 34. d5 {[%emt 0:00:07]} cxd5 {[%emt 0:00:22]} 35. cxd5 {[%emt 0:00:05]} Kc7 {[%emt 0:00:34]} 36. Kg1 {[%emt 0:00:58]} Kd6 {[%emt 0:00:26]} 37. Re2 {[%emt 0:00:01]} Rh6 {[%emt 0:00:07]} 38. Rc2 {[%emt 0:00:12]} Rf6 {[%emt 0:00:18]} 39. Kf2 {[%emt 0:00:26]} Rf8 {[%emt 0:00:23]} 40. Rc1 {[%emt 0:00:06]} Rc8 {[%emt 0:00:28]} 41. Rh1 {[%emt 0:00:01]} Rc2+ {[%emt 0:00:01]} 42. Kg1 {[%emt 0:00:01]} Rc1+ {[%emt 0:00:05]} 43. Bf1 {[%emt 0:00:04]} b5 {[%emt 0:00:31]} 44. Rxh7 {[%emt 0:00:45]} bxa4 {[%emt 0:00:07]} 45. bxa4 {[%emt 0:00:01]} Bxa4 {[%emt 0:00:04]} 46. Kf2 {[%emt 0:00:03]} Rc2+ {[%emt 0:00:20]} 47. Ke1 {[%emt 0:00:05]} Rc3 {[%emt 0:00:16]} 48. Ra7 {[%emt 0:00:03]} Rxg3 {[%emt 0:00:05]} 49. Rxa5 {[%emt 0:00:03]} Bb3 {[%emt 0:00:11]} 50. Kf2 {[%emt 0:00:09]} f4 {[%emt 0:00:07]} 51. Bg2 {[%emt 0:00:05]} Bc4 {[%emt 0:00:09]} 52. Ra4 {[%emt 0:00:19]} Rc3 {[%emt 0:00:05]} 53. Ra8 {[%emt 0:00:12]} Rc2+ {[%emt 0:00:02]} 54. Kg1 {[%emt 0:00:05]} Rxg2+ {[%emt 0:00:05]} 0-1

[Event "HUN-ch Rapid 2018"]
[Site "Ajka"]
[Date "2018.07.20"]
[Round "4"]
[White "Mihalyfi, Gabor"]
[Black "Dankhazi, Andras"]
[Result "0-1"]
[ECO "C21"]
[WhiteElo "1999"]
[BlackElo "2361"]
[Annotator "NA"]
[PlyCount "82"]
[EventDate "2018.07.20"]
[EventType "swiss"]
[EventCountry "HUN"]
[SourceTitle "playchess.com"]
[Source "ChessBase"]
[SourceQuality "1"]
[TimeControl "1200+5"]

1. e4 {[%emt 0:00:03]} e5 {[%emt 0:00:02]} 2. d4 {[%emt 0:00:12]} exd4 {[%emt 0:00:03]} 3. Bc4 {[%emt 0:00:04]} Nf6 {[%emt 0:01:36]} 4. Bg5 {[%emt 0:00:51]} Nc6 {[%emt 0:07:38]} 5. Nf3 {[%emt 0:00:10]} Be7 {[%emt 0:02:22]} 6. Nxd4 {[%emt 0:03:02]} Nxe4 {[%emt 0:00:38]} 7. Nxc6 {[%emt 0:00:26]} bxc6 {[%emt 0:00:27]} 8. Bxe7 {[%emt 0:00:53]} Qxe7 {[%emt 0:00:02]} 9. O-O {[%emt 0:00:03]} O-O {[%emt 0:01:42]} 10. Re1 {[%emt 0:00:10]} d5 {[%emt 0:00:02]} 11. Bd3 {[%emt 0:00:02]} Qf6 {[%emt 0:00:40]} 12. Bxe4 {[%emt 0:00:51]} Qxb2 {[%emt 0:00:56]} 13. Bxh7+ {[%emt 0:00:12]} Kxh7 {[%emt 0:00:02]} 14. Qd3+ {[%emt 0:00:30]} Kg8 {[%emt 0:00:07]} 15. Nd2 {[%emt 0:00:22]} Qf6 {[%emt 0:00:11]} 16. Rac1 {[%emt 0:02:01]} Bf5 {[%emt 0:00:27]} 17. Qf3 {[%emt 0:00:23]} Qg5 {[%emt 0:00:11]} 18. Qe3 {[%emt 0:01:16]} Qxe3 {[%emt 0:00:02]} 19. Rxe3 {[%emt 0:00:01]} Rfe8 {[%emt 0:00:01]} 20. Rc3 {[%emt 0:00:20]} Bd7 {[%emt 0:00:25]} 21. Nf3 {[%emt 0:00:08]} Rab8 {[%emt 0:00:34]} 22. Nd4 {[%emt 0:00:53]} Rb6 {[%emt 0:00:00]} 23. Rc5 {[%emt 0:00:33]} Kf8 {[%emt 0:00:31]} 24. Kf1 {[%emt 0:00:36]} Ke7 {[%emt 0:00:29]} 25. Ra5 {[%emt 0:01:27]} a6 {[%emt 0:00:26]} 26. Re1+ {[%emt 0:00:55]} Kd8 {[%emt 0:00:22]} 27. Rxe8+ {[%emt 0:00:07]} Kxe8 {[%emt 0:00:09]} 28. Nb3 {[%emt 0:01:09]} Ke7 {[%emt 0:00:03]} 29. Ke2 {[%emt 0:00:14]} Kd6 {[%emt 0:00:17]} 30. Ke3 {[%emt 0:00:18]} Bc8 {[%emt 0:00:14]} 31. c3 {[%emt 0:00:10]} Rb5 {[%emt 0:01:24]} 32. Ra4 {[%emt 0:00:10]} c5 {[%emt 0:00:04]} 33. h4 {[%emt 0:00:38]} c4 {[%emt 0:00:12]} 34. Nd4 {[%emt 0:00:15]} Rb2 {[%emt 0:00:07]} 35. g4 {[%emt 0:00:26]} c5 {[%emt 0:00:06]} 36. Ne2 {[%emt 0:00:28]} Rb6 {[%emt 0:00:05]} 37. g5 {[%emt 0:00:07]} Kc6 {[%emt 0:00:14]} 38. Nf4 {[%emt 0:00:09]} Kb5 {[%emt 0:00:03]} 39. Nxd5 {[%emt 0:00:02]} Re6+ {[%emt 0:00:00]} 40. Kd2 {[%emt 0:00:37]} Kxa4 {[%emt 0:00:02]} 41. f4 {[%emt 0:00:03]} Rd6 {[%emt 0:00:00]} 0-1

[Event "HUN-ch Rapid 2018"]
[Site "Ajka"]
[Date "2018.07.20"]
[Round "4"]
[White "Cs. Kovacs, Laszlo"]
[Black "Papp, Gellert"]
[Result "0-1"]
[ECO "A05"]
[WhiteElo "1928"]
[BlackElo "2324"]
[Annotator "NA"]
[PlyCount "80"]
[EventDate "2018.07.20"]
[EventType "swiss"]
[EventCountry "HUN"]
[SourceTitle "playchess.com"]
[Source "ChessBase"]
[SourceQuality "1"]
[TimeControl "1200+5"]

1. Nf3 {[%emt 0:00:02]} Nf6 {[%emt 0:01:41]} 2. d3 {[%emt 0:00:04]} d5 {[%emt 0:00:04]} 3. g3 {[%emt 0:00:02]} g6 {[%emt 0:00:05]} 4. Bg2 {[%emt 0:00:01]} Bg7 {[%emt 0:00:01]} 5. c3 {[%emt 0:00:02]} Nbd7 {[%emt 0:02:53]} 6. O-O {[%emt 0:00:04]} a5 {[%emt 0:00:12]} 7. b3 {[%emt 0:00:03]} O-O {[%emt 0:00:29]} 8. Bb2 {[%emt 0:00:01]} Re8 {[%emt 0:00:56]} 9. c4 {[%emt 0:00:13]} e5 {[%emt 0:01:06]} 10. cxd5 {[%emt 0:00:08]} Nxd5 {[%emt 0:00:03]} 11. Nfd2 {[%emt 0:00:11]} c6 {[%emt 0:01:04]} 12. Nc3 {[%emt 0:00:20]} N7b6 {[%emt 0:00:43]} 13. Nxd5 {[%emt 0:00:05]} Nxd5 {[%emt 0:00:54]} 14. Rc1 {[%emt 0:00:03]} a4 {[%emt 0:01:06]} 15. bxa4 {[%emt 0:00:13]} Nb6 {[%emt 0:00:36]} 16. Qb3 {[%emt 0:00:41]} Nxa4 {[%emt 0:00:07]} 17. Rxc6 {[%emt 0:01:25]} bxc6 {[%emt 0:01:16]} 18. Bxc6 {[%emt 0:00:03]} Bd7 {[%emt 0:00:17]} 19. Bxa8 {[%emt 0:00:24]} Qxa8 {[%emt 0:00:02]} 20. Ba1 {[%emt 0:00:09]} Bh3 {[%emt 0:00:33]} 21. f3 {[%emt 0:00:17]} Bxf1 {[%emt 0:00:03]} 22. Kxf1 {[%emt 0:00:02]} e4 {[%emt 0:00:56]} 23. Bxg7 {[%emt 0:00:08]} exf3 {[%emt 0:00:02]} 24. Nxf3 {[%emt 0:01:15]} Kxg7 {[%emt 0:00:05]} 25. Kf2 {[%emt 0:00:46]} Qa7+ {[%emt 0:00:16]} 26. d4 {[%emt 0:00:04]} Re4 {[%emt 0:01:14]} 27. e3 {[%emt 0:00:25]} f6 {[%emt 0:00:50]} 28. Nd2 {[%emt 0:00:53]} Re7 {[%emt 0:00:01]} 29. Nc4 {[%emt 0:00:11]} Rb7 {[%emt 0:00:06]} 30. Qa3 {[%emt 0:00:28]} Qa6 {[%emt 0:00:12]} 31. Nd6 {[%emt 0:00:40]} Rb2+ {[%emt 0:00:02]} 32. Kf3 {[%emt 0:00:08]} Qf1+ {[%emt 0:01:08]} 33. Kg4 {[%emt 0:00:56]} Qd1+ {[%emt 0:00:06]} 34. Kf4 {[%emt 0:00:33]} Rf2+ {[%emt 0:00:17]} 35. Ke4 {[%emt 0:00:11]} Qh1+ {[%emt 0:00:25]} 36. Kd3 {[%emt 0:00:26]} Qb1+ {[%emt 0:00:12]} 37. Kc4 {[%emt 0:00:15]} Nb6+ {[%emt 0:00:02]} 38. Kc5 {[%emt 0:00:08]} Rc2+ {[%emt 0:00:01]} 39. Nc4 {[%emt 0:00:24]} Rxc4+ {[%emt 0:00:05]} 40. Kd6 {[%emt 0:00:06]} Qb4+ {[%emt 0:00:15]} 0-1

[Event "HUN-ch Rapid 2018"]
[Site "Ajka"]
[Date "2018.07.20"]
[Round "4"]
[White "Losonczi, Marcell"]
[Black "Martini, Balazs"]
[Result "0-1"]
[ECO "B32"]
[WhiteElo "1852"]
[BlackElo "2295"]
[Annotator "NA"]
[PlyCount "124"]
[EventDate "2018.07.20"]
[EventType "swiss"]
[EventCountry "HUN"]
[SourceTitle "playchess.com"]
[Source "ChessBase"]
[SourceQuality "1"]
[TimeControl "1200+5"]

1. e4 {[%emt 0:00:02]} c5 {[%emt 0:00:01]} 2. Nf3 {[%emt 0:00:02]} Nc6 {[%emt 0:00:02]} 3. d4 {[%emt 0:00:02]} cxd4 {[%emt 0:00:02]} 4. Nxd4 {[%emt 0:00:02]} e5 {[%emt 0:00:01]} 5. Nb5 {[%emt 0:00:15]} d6 {[%emt 0:00:01]} 6. c4 {[%emt 0:00:23]} Be7 {[%emt 0:00:01]} 7. N1c3 {[%emt 0:00:08]} a6 {[%emt 0:00:00]} 8. Na3 {[%emt 0:00:01]} f5 {[%emt 0:00:01]} 9. exf5 {[%emt 0:00:05]} Bxf5 {[%emt 0:00:03]} 10. Bd3 {[%emt 0:00:02]} Be6 {[%emt 0:00:01]} 11. O-O {[%emt 0:00:47]} Nf6 {[%emt 0:00:00]} 12. Nc2 {[%emt 0:00:19]} O-O {[%emt 0:00:04]} 13. Be3 {[%emt 0:03:20]} Qd7 {[%emt 0:03:06]} 14. f3 {[%emt 0:00:38]} Rae8 {[%emt 0:00:15]} 15. Qe1 {[%emt 0:01:37]} Nh5 {[%emt 0:00:11]} 16. b3 {[%emt 0:01:03]} Bd8 {[%emt 0:00:15]} 17. a3 {[%emt 0:00:17]} Nf4 {[%emt 0:00:23]} 18. Be4 {[%emt 0:00:20]} Kh8 {[%emt 0:00:41]} 19. Rd1 {[%emt 0:00:21]} Qe7 {[%emt 0:00:31]} 20. Qd2 {[%emt 0:02:17]} Ba5 {[%emt 0:01:13]} 21. b4 {[%emt 0:00:39]} Bc7 {[%emt 0:00:04]} 22. Bxf4 {[%emt 0:00:24]} Rxf4 {[%emt 0:00:05]} 23. Nd5 {[%emt 0:00:02]} Bxd5 {[%emt 0:00:05]} 24. Qxd5 {[%emt 0:00:41]} Bb6+ {[%emt 0:00:48]} 25. Kh1 {[%emt 0:00:08]} Rh4 {[%emt 0:00:15]} 26. g3 {[%emt 0:00:27]} Rh6 {[%emt 0:00:03]} 27. Qd2 {[%emt 0:01:08]} Rf8 {[%emt 0:01:40]} 28. Ne3 {[%emt 0:00:48]} Bxe3 {[%emt 0:00:24]} 29. Qxe3 {[%emt 0:00:08]} Nd4 {[%emt 0:00:02]} 30. Bxh7 {[%emt 0:01:04]} Qf7 {[%emt 0:02:32]} 31. Be4 {[%emt 0:00:18]} Qxc4 {[%emt 0:00:58]} 32. Bxb7 {[%emt 0:00:42]} Qf7 {[%emt 0:02:10]} 33. Be4 {[%emt 0:02:27]} d5 {[%emt 0:00:04]} 34. Bb1 {[%emt 0:00:05]} Qh5 {[%emt 0:00:27]} 35. h4 {[%emt 0:00:55]} Rhf6 {[%emt 0:02:58]} 36. Qg5 {[%emt 0:00:48]} Qxg5 {[%emt 0:00:27]} 37. hxg5 {[%emt 0:00:01]} Rxf3 {[%emt 0:00:02]} 38. Kg2 {[%emt 0:00:02]} Rxf1 {[%emt 0:01:19]} 39. Rxf1 {[%emt 0:00:02]} Rxf1 {[%emt 0:00:00]} 40. Kxf1 {[%emt 0:00:04]} Ne6 {[%emt 0:00:02]} 41. Bd3 {[%emt 0:00:20]} Nc7 {[%emt 0:00:15]} 42. a4 {[%emt 0:00:06]} Kg8 {[%emt 0:00:36]} 43. Bf5 {[%emt 0:00:06]} Kf8 {[%emt 0:00:08]} 44. Ke2 {[%emt 0:00:01]} Ke7 {[%emt 0:00:01]} 45. Kd3 {[%emt 0:00:02]} Kd6 {[%emt 0:00:01]} 46. Bc8 {[%emt 0:00:11]} Kc6 {[%emt 0:00:11]} 47. Bf5 {[%emt 0:00:07]} Ne8 {[%emt 0:00:47]} 48. Bc8 {[%emt 0:00:03]} Nc7 {[%emt 0:00:22]} 49. Bf5 {[%emt 0:00:02]} Kb6 {[%emt 0:00:09]} 50. Bd7 {[%emt 0:00:02]} a5 {[%emt 0:00:04]} 51. bxa5+ Kxa5 52. Bc6 {[%emt 0:00:12]} Kb4 {[%emt 0:00:02]} 53. Bd7 {[%emt 0:00:02]} Na6 {[%emt 0:00:02]} 54. Bb5 {[%emt 0:00:02]} Nc5+ {[%emt 0:00:01]} 55. Ke3 {[%emt 0:00:02]} d4+ {[%emt 0:00:04]} 56. Kd2 {[%emt 0:00:02]} Nxa4 {[%emt 0:00:01]} 57. Bd3 {[%emt 0:00:07]} Nc5 {[%emt 0:00:02]} 58. Bf5 {[%emt 0:00:02]} e4 {[%emt 0:00:02]} 59. Kc2 {[%emt 0:00:07]} Kc4 {[%emt 0:00:03]} 60. Kd2 {[%emt 0:00:03]} Kd5 {[%emt 0:00:03]} 61. Kc2 {[%emt 0:00:05]} Ke5 {[%emt 0:00:03]} 62. Bg6 {[%emt 0:00:03]} Ne6 {[%emt 0:00:01]} 0-1

[Event "HUN-ch Rapid 2018"]
[Site "Ajka"]
[Date "2018.07.20"]
[Round "5"]
[White "Banusz, Tamas"]
[Black "Vertetics, Attila"]
[Result "1/2-1/2"]
[ECO "A06"]
[WhiteElo "2592"]
[BlackElo "2506"]
[Annotator "ChessBase"]
[PlyCount "111"]
[EventDate "2018.07.20"]
[EventType "swiss"]
[EventCountry "HUN"]
[SourceTitle "playchess.com"]
[Source "ChessBase"]
[SourceQuality "1"]
[TimeControl "1200+5"]

1. Nf3 {[%emt 0:00:04]} d5 {[%emt 0:00:05]} 2. g3 {[%emt 0:00:01]} c6 {[%emt 0:00:02]} 3. Bg2 {[%emt 0:00:01]} Bg4 {[%emt 0:00:03]} 4. O-O {[%emt 0:00:03]} e6 {[%emt 0:00:02]} 5. h3 {[%emt 0:00:02]} Bxf3 {[%emt 0:00:10]} 6. Bxf3 {[%emt 0:00:02]} Nf6 {[%emt 0:00:05]} 7. d4 {[%emt 0:00:30]} Nbd7 {[%emt 0:00:21]} 8. Nd2 {[%emt 0:00:11]} Be7 {[%emt 0:00:10]} 9. e4 {[%emt 0:00:02]} dxe4 {[%emt 0:00:02]} 10. Nxe4 {[%emt 0:00:01]} Nxe4 {[%emt 0:00:01]} 11. Bxe4 {[%emt 0:00:01]} Bg5 {[%emt 0:00:02]} 12. f4 {[%emt 0:03:10]} Be7 {[%emt 0:00:21]} 13. c3 {[%emt 0:00:08]} g6 {[%emt 0:00:42]} 14. Kg2 {[%emt 0:00:31]} h5 {[%emt 0:00:18]} 15. Qc2 {[%emt 0:00:32]} Nf6 {[%emt 0:00:33]} 16. Bf3 {[%emt 0:00:01]} Qc7 {[%emt 0:00:14]} 17. c4 {[%emt 0:02:13]} Rd8 {[%emt 0:01:11]} 18. Be3 {[%emt 0:00:06]} Kf8 {[%emt 0:00:29]} 19. Rad1 {[%emt 0:00:34]} Ne8 {[%emt 0:01:39]} 20. Qb3 {[%emt 0:01:01]} Bf6 {[%emt 0:01:23]} 21. d5 {[%emt 0:00:53]} exd5 {[%emt 0:00:08]} 22. Bxa7 {[%emt 0:01:59]} dxc4 {[%emt 0:00:30]} 23. Qxc4 {[%emt 0:00:28]} Kg7 {[%emt 0:00:36]} 24. Rxd8 {[%emt 0:00:28]} Qxd8 {[%emt 0:00:02]} 25. Rd1 {[%emt 0:00:04]} Qc7 {[%emt 0:01:21]} 26. Bd4 {[%emt 0:00:34]} h4 {[%emt 0:01:39]} 27. Bxf6+ {[%emt 0:00:57]} Nxf6 {[%emt 0:00:03]} 28. g4 {[%emt 0:00:01]} g5 {[%emt 0:00:38]} 29. Kf1 {[%emt 0:02:00]} Qxf4 {[%emt 0:00:15]} 30. Qxf4 {[%emt 0:00:01]} gxf4 {[%emt 0:00:01]} 31. Rd4 {[%emt 0:00:01]} Nh7 {[%emt 0:00:13]} 32. Rxf4 {[%emt 0:01:23]} Ng5 {[%emt 0:00:01]} 33. Bg2 {[%emt 0:00:05]} Re8 {[%emt 0:00:14]} 34. Kf2 {[%emt 0:00:28]} Re5 {[%emt 0:00:11]} 35. Rb4 {[%emt 0:00:12]} Re7 {[%emt 0:00:16]} 36. Rd4 {[%emt 0:00:13]} Re5 {[%emt 0:00:17]} 37. Rb4 {[%emt 0:00:34]} Re7 {[%emt 0:00:03]} 38. a4 {[%emt 0:00:02]} Kf6 {[%emt 0:00:48]} 39. Rd4 {[%emt 0:00:03]} Ne6 {[%emt 0:00:39]} 40. Rd1 {[%emt 0:01:09]} Nf4 {[%emt 0:00:26]} 41. Bf1 {[%emt 0:00:12]} Re4 {[%emt 0:00:05]} 42. b3 {[%emt 0:00:11]} Rb4 {[%emt 0:00:03]} 43. Bc4 {[%emt 0:00:26]} Nxh3+ {[%emt 0:00:31]} 44. Ke3 {[%emt 0:00:01]} Ke5 {[%emt 0:00:56]} 45. a5 {[%emt 0:00:13]} Nf4 {[%emt 0:00:44]} 46. Rf1 {[%emt 0:00:14]} Nd5+ {[%emt 0:00:14]} 47. Kd3 {[%emt 0:00:08]} b5 {[%emt 0:00:11]} 48. axb6 {[%emt 0:00:45]} Nxb6 {[%emt 0:00:31]} 49. Rf5+ {[%emt 0:00:07]} Kd6 {[%emt 0:00:04]} 50. Kc3 {[%emt 0:00:13]} c5 {[%emt 0:01:32]} 51. Rf6+ {[%emt 0:00:01]} Ke5 {[%emt 0:00:01]} 52. Rf5+ {[%emt 0:00:15]} Kd6 {[%emt 0:00:06]} 53. Rf6+ {[%emt 0:00:07]} Ke5 {[%emt 0:00:01]} 54. Rf5+ {[%emt 0:00:02]} Kd6 {[%emt 0:00:10]} 55. Rf6+ {[%emt 0:00:11]} Ke5 {[%emt 0:00:01]} 56. Rf5+ {[%emt 0:00:16]} 1/2-1/2

[Event "HUN-ch Rapid 2018"]
[Site "Ajka"]
[Date "2018.07.20"]
[Round "5"]
[White "Gledura, Benjamin"]
[Black "Mihok, Oliver"]
[Result "0-1"]
[ECO "E68"]
[WhiteElo "2574"]
[BlackElo "2426"]
[Annotator "ChessBase"]
[PlyCount "74"]
[EventDate "2018.07.20"]
[EventType "swiss"]
[EventCountry "HUN"]
[SourceTitle "playchess.com"]
[Source "ChessBase"]
[SourceQuality "1"]
[TimeControl "1200+5"]

1. d4 {[%emt 0:00:03]} Nf6 {[%emt 0:00:03]} 2. c4 {[%emt 0:00:03]} g6 {[%emt 0:00:01]} 3. g3 {[%emt 0:00:10]} Bg7 {[%emt 0:00:03]} 4. Bg2 {[%emt 0:00:01]} O-O {[%emt 0:00:04]} 5. Nc3 {[%emt 0:00:04]} d6 {[%emt 0:00:03]} 6. Nf3 {[%emt 0:00:02]} Nbd7 {[%emt 0:00:08]} 7. O-O {[%emt 0:00:03]} e5 {[%emt 0:00:01]} 8. e4 {[%emt 0:00:14]} exd4 {[%emt 0:00:05]} 9. Nxd4 {[%emt 0:00:02]} Re8 {[%emt 0:00:02]} 10. h3 {[%emt 0:00:32]} a6 {[%emt 0:00:11]} 11. Bf4 {[%emt 0:00:39]} Rb8 {[%emt 0:00:34]} 12. Rc1 {[%emt 0:00:52]} Ne5 {[%emt 0:00:30]} 13. b3 {[%emt 0:00:29]} c5 {[%emt 0:01:12]} 14. Nf3 {[%emt 0:00:20]} Nfd7 {[%emt 0:00:25]} 15. Qxd6 {[%emt 0:02:24]} Nxf3+ {[%emt 0:00:35]} 16. Bxf3 {[%emt 0:00:02]} g5 {[%emt 0:00:05]} 17. Be3 {[%emt 0:03:08]} Ne5 {[%emt 0:00:48]} 18. Qxd8 {[%emt 0:01:25]} Nxf3+ {[%emt 0:00:02]} 19. Kg2 {[%emt 0:00:00]} Rxd8 {[%emt 0:02:07]} 20. Kxf3 {[%emt 0:00:03]} Bxh3 {[%emt 0:00:15]} 21. Nd5 {[%emt 0:00:28]} g4+ {[%emt 0:00:48]} 22. Ke2 {[%emt 0:00:08]} Bxf1+ {[%emt 0:00:10]} 23. Rxf1 {[%emt 0:00:06]} Re8 {[%emt 0:00:47]} 24. Kd3 {[%emt 0:00:08]} b5 {[%emt 0:01:22]} 25. cxb5 {[%emt 0:01:45]} Rxb5 {[%emt 0:00:25]} 26. Rh1 {[%emt 0:00:37]} Ra5 {[%emt 0:01:06]} 27. Rh4 {[%emt 0:01:05]} c4+ {[%emt 0:00:03]} 28. bxc4 {[%emt 0:01:48]} Ra3+ {[%emt 0:00:01]} 29. Ke2 {[%emt 0:00:08]} Rxa2+ {[%emt 0:00:17]} 30. Kd3 {[%emt 0:00:08]} Ra3+ {[%emt 0:00:03]} 31. Ke2 {[%emt 0:00:02]} Rxe4 {[%emt 0:00:07]} 32. c5 {[%emt 0:00:02]} Rc4 {[%emt 0:02:39]} 33. c6 {[%emt 0:00:05]} Be5 {[%emt 0:02:50]} 34. Rh5 {[%emt 0:01:52]} f6 {[%emt 0:00:07]} 35. Bb6 {[%emt 0:01:22]} Rc2+ {[%emt 0:00:19]} 36. Kf1 {[%emt 0:00:29]} Ra1+ {[%emt 0:00:27]} 37. Kg2 {[%emt 0:00:03]} Rcc1 {[%emt 0:00:08]} 0-1

[Event "HUN-ch Rapid 2018"]
[Site "Ajka"]
[Date "2018.07.20"]
[Round "5"]
[White "Papp, Gabor"]
[Black "Horvath, Peter"]
[Result "1-0"]
[ECO "B31"]
[WhiteElo "2574"]
[BlackElo "2438"]
[Annotator "ChessBase"]
[PlyCount "91"]
[EventDate "2018.07.20"]
[EventType "swiss"]
[EventCountry "HUN"]
[SourceTitle "playchess.com"]
[Source "ChessBase"]
[SourceQuality "1"]
[TimeControl "1200+5"]

1. e4 {[%emt 0:00:02]} c5 {[%emt 0:00:02]} 2. Nf3 {[%emt 0:00:03]} Nc6 {[%emt 0:00:01]} 3. Bb5 {[%emt 0:00:12]} g6 {[%emt 0:00:03]} 4. Bxc6 {[%emt 0:00:03]} dxc6 {[%emt 0:00:02]} 5. d3 {[%emt 0:00:06]} Bg7 {[%emt 0:00:05]} 6. Nc3 {[%emt 0:00:08]} Nf6 {[%emt 0:00:04]} 7. h3 {[%emt 0:00:01]} O-O {[%emt 0:00:17]} 8. Be3 {[%emt 0:00:04]} b6 {[%emt 0:00:01]} 9. Qd2 {[%emt 0:00:03]} e5 {[%emt 0:00:06]} 10. Bh6 {[%emt 0:00:30]} Qd6 {[%emt 0:00:20]} 11. O-O-O {[%emt 0:00:27]} b5 {[%emt 0:00:31]} 12. Ne2 {[%emt 0:00:41]} a5 {[%emt 0:01:20]} 13. Bxg7 {[%emt 0:02:26]} Kxg7 {[%emt 0:00:04]} 14. h4 {[%emt 0:00:12]} h5 {[%emt 0:03:28]} 15. Ng5 {[%emt 0:00:02]} Ng4 {[%emt 0:01:05]} 16. Rdf1 {[%emt 0:00:21]} f6 {[%emt 0:00:07]} 17. Nh3 {[%emt 0:00:17]} Be6 {[%emt 0:00:48]} 18. f3 {[%emt 0:00:20]} Nh6 {[%emt 0:00:05]} 19. Kb1 {[%emt 0:00:42]} a4 {[%emt 0:04:27]} 20. f4 {[%emt 0:00:42]} Bg4 {[%emt 0:00:14]} 21. fxe5 {[%emt 0:01:40]} Qxe5 {[%emt 0:00:16]} 22. Nhf4 {[%emt 0:01:30]} b4 {[%emt 0:00:41]} 23. c4 {[%emt 0:02:09]} a3 {[%emt 0:00:58]} 24. Nc1 {[%emt 0:00:16]} Rf7 {[%emt 0:00:48]} 25. Rf2 {[%emt 0:00:14]} Rfa7 {[%emt 0:01:42]} 26. Rhf1 {[%emt 0:00:27]} Ng8 {[%emt 0:00:44]} 27. Qe3 {[%emt 0:00:32]} Qd4 {[%emt 0:02:27]} 28. Qxd4 {[%emt 0:01:16]} cxd4 {[%emt 0:00:02]} 29. Nb3 {[%emt 0:00:03]} g5 {[%emt 0:00:28]} 30. hxg5 {[%emt 0:00:22]} fxg5 {[%emt 0:00:01]} 31. Nh3 {[%emt 0:00:03]} axb2 {[%emt 0:00:12]} 32. Rxb2 {[%emt 0:00:03]} Kg6 {[%emt 0:00:10]} 33. Nxd4 {[%emt 0:00:07]} c5 {[%emt 0:00:13]} 34. Nc6 {[%emt 0:00:11]} Ra3 {[%emt 0:00:12]} 35. Ne5+ {[%emt 0:00:02]} Kh6 {[%emt 0:00:05]} 36. Nf7+ {[%emt 0:01:35]} Kg6 {[%emt 0:00:04]} 37. Ne5+ {[%emt 0:00:48]} Kh6 {[%emt 0:00:02]} 38. Nf2 {[%emt 0:00:44]} Be6 {[%emt 0:00:14]} 39. Nd1 {[%emt 0:00:11]} Re8 {[%emt 0:00:29]} 40. Ne3 {[%emt 0:00:25]} g4 {[%emt 0:00:02]} 41. Rb3 {[%emt 0:00:14]} Ra6 {[%emt 0:00:10]} 42. g3 {[%emt 0:00:03]} Ne7 {[%emt 0:00:12]} 43. Rb2 {[%emt 0:00:08]} Kg7 {[%emt 0:00:03]} 44. Rh2 {[%emt 0:00:04]} Ng6 {[%emt 0:00:02]} 45. Rxh5 {[%emt 0:00:12]} Bg8 {[%emt 0:00:09]} 46. Nxg6 {[%emt 0:00:05]} 1-0